bitfinex/quotes_BTCUSD_20250917
["timestamp","ask_amount","ask_price","bid_price","bid_amount"]
[1758136328974,1.54304117,115780.0,115770.0,0.00087063]
[1758136330179,1.23424117,115780.0,115770.0,0.00087063]
[1758136330443,1.17055858,115780.0,115770.0,0.00087063]
[1758136330784,1.44916668,115780.0,115770.0,0.00087063]
[1758136331193,1.47931858,115780.0,115770.0,0.00087063]
[1758136331389,1.17055858,115780.0,115770.0,0.00087063]
[1758136331613,1.14040668,115780.0,115770.0,0.00087063]
[1758136331827,1.47931858,115780.0,115770.0,0.00087063]
[1758136332256,1.17055858,115780.0,115770.0,0.00087063]
[1758136332471,0.99781718,115780.0,115770.0,0.17362695]
[1758136332727,0.08536967,115780.0,115770.0,0.17362695]
[1758136332958,0.39408967,115780.0,115770.0,0.22362695]
[1758136333392,1.10597729,115780.0,115770.0,0.05087063]
[1758136333646,0.56683107,115780.0,115770.0,0.05087063]
[1758136333913,1.10597729,115780.0,115770.0,0.05087063]
[1758136334150,0.56683107,115780.0,115770.0,0.22362695]
[1758136334365,0.62451589,115780.0,115770.0,0.22362695]
[1758136334581,0.56998633,115780.0,115770.0,0.05087063]
[1758136334799,1.10597729,115780.0,115770.0,0.05087063]
[1758136335376,1.47612919,115780.0,115770.0,0.00087063]
[1758136335874,1.47612919,115780.0,115770.0,0.05087063]
[1758136336114,1.47612919,115780.0,115770.0,0.00087063]
[1758136336934,1.47919878,115780.0,115770.0,0.00087063]
[1758136337145,1.47919878,115780.0,115770.0,0.05087063]
[1758136338727,1.30645738,115780.0,115770.0,0.17362695]
[1758136338958,0.08536967,115780.0,115770.0,0.22362695]
[1758136339183,0.39396967,115780.0,115770.0,0.22362695]
[1758136339393,0.12482076,115780.0,115770.0,0.22362695]
[1758136339548,0.43342076,115780.0,115770.0,0.22362695]
[1758136339753,0.43338076,115780.0,115770.0,0.22362695]
[1758136339961,0.08536967,115780.0,115770.0,0.22362695]
[1758136340122,0.39392967,115780.0,115770.0,0.22362695]
[1758136340535,0.08536967,115780.0,115770.0,0.22362695]
[1758136340749,0.0001,115780.0,115770.0,0.76277317]
[1758136341657,0.0001,115780.0,115770.0,1.10277317]
[1758136341862,0.0001,115780.0,115770.0,1.18804284]
[1758136342120,0.0001,115780.0,115770.0,1.25383118]
[1758136342548,0.0001,115780.0,115770.0,1.16856151]
[1758136344526,0.0001,115780.0,115770.0,0.62941529]
[1758136344730,0.0001,115780.0,115770.0,1.16856151]
[1758136344954,0.0001,115780.0,115770.0,0.77856151]
[1758136345391,0.0001,115780.0,115770.0,0.23941529]
[1758136345605,0.08536967,115780.0,115770.0,0.22362695]
[1758136345809,0.62451589,115780.0,115770.0,0.22362695]
[1758136346033,0.08536967,115780.0,115770.0,0.22362695]
[1758136346925,0.39372967,115780.0,115770.0,0.22362695]
[1758136347134,0.08536967,115780.0,115770.0,0.22362695]
[1758136347555,0.0001,115780.0,115770.0,0.22362695]
[1758136347770,0.30842,115780.0,115770.0,0.22362695]
[1758136348197,0.0001,115780.0,115770.0,0.76277317]
[1758136348407,0.0001,115780.0,115770.0,0.22362695]
[1758136349590,0.62451589,115780.0,115770.0,0.17362695]
[1758136349806,0.79725729,115780.0,115770.0,0.17362695]
[1758136350243,0.25811107,115780.0,115770.0,0.17362695]
[1758136350461,0.79725729,115780.0,115770.0,0.17362695]
[1758136350695,0.830556,115780.0,115770.0,0.00087063]
[1758136350904,0.830556,115780.0,115770.0,0.05087063]
[1758136351137,0.830556,115780.0,115770.0,0.00087063]
[1758136351138,1.170556,115780.0,115770.0,0.00087063]
[1758136351793,0.63140978,115780.0,115770.0,0.00087063]
[1758136352019,1.170556,115780.0,115770.0,0.00087063]
[1758136354214,1.23509417,115780.0,115770.0,0.00087063]
[1758136354866,1.56705417,115780.0,115770.0,0.00087063]
[1758136356900,2.01605417,115780.0,115770.0,0.00087063]
[1758136358015,2.01290736,115780.0,115770.0,0.00087063]
[1758136358235,1.78180114,115780.0,115770.0,0.00087063]
[1758136358457,2.32094736,115780.0,115770.0,0.00087063]
[1758136358678,1.92139534,115780.0,115770.0,0.00087063]
[1758136358893,2.22943534,115780.0,115770.0,0.00087063]
[1758136359135,0.71028912,115780.0,115770.0,0.00087063]
[1758136359350,1.55747534,115780.0,115770.0,0.00087063]
[1758136359568,1.92762724,115780.0,115770.0,0.00087063]
[1758136361975,1.92444919,115780.0,115770.0,0.00087063]
[1758136363536,1.92756887,115780.0,115770.0,0.00087063]
[1758136365860,2.0601046,115780.0,115770.0,0.00087063]
[1758136368599,1.38842265,115780.0,115770.0,0.00087063]
[1758136368801,2.0601046,115780.0,115770.0,0.00087063]
[1758136370447,1.7201046,115780.0,115770.0,0.00087063]
[1758136370851,2.0601046,115780.0,115770.0,0.00087063]
[1758136372021,1.05023075,115780.0,115770.0,0.17362695]
[1758136372152,2.0295527,115780.0,115770.0,0.17362695]
[1758136372393,2.0597046,115780.0,115770.0,0.00087063]
[1758136372634,0.39300967,115780.0,115770.0,0.22362695]
[1758136372835,0.39300967,115780.0,115770.0,0.22372695]
[1758136373454,0.3960548,115780.0,115770.0,0.22372695]
[1758136373644,0.3959548,115780.0,115770.0,0.22372695]
[1758136374352,0.39290967,115780.0,115770.0,0.22372695]
[1758136374565,0.56565107,115780.0,115770.0,0.05097063]
[1758136374799,1.26748492,115780.0,115770.0,0.00097063]
[1758136375006,1.26748492,115780.0,115770.0,0.05097063]
[1758136375642,0.59580297,115780.0,115770.0,0.22372695]
[1758136376078,0.59885524,115780.0,115770.0,0.22372695]
[1758136376277,0.59885524,115780.0,115770.0,0.05097063]
[1758136377121,0.59580297,115780.0,115770.0,0.05097063]
[1758136377567,0.59580297,115780.0,115770.0,0.22372695]
[1758136377984,0.59580297,115780.0,115770.0,0.05097063]
[1758136378411,1.26758492,115780.0,115770.0,0.00097063]
[1758136378624,1.27075191,115780.0,115770.0,0.00097063]
[1758136378827,0.59906996,115780.0,115770.0,0.22372695]
[1758136379034,1.27075191,115780.0,115770.0,0.22372695]
[1758136379478,1.27075191,115780.0,115770.0,0.00097063]
[1758136379690,1.09801051,115780.0,115770.0,0.22372695]
[1758136379943,0.42632856,115780.0,115770.0,0.22372695]
[1758136380158,0.59906996,115780.0,115770.0,0.22372695]
[1758136380370,0.59906996,115780.0,115770.0,0.05097063]
[1758136380571,1.27075191,115780.0,115770.0,0.00097063]
[1758136380788,0.59906996,115780.0,115770.0,0.05097063]
[1758136380998,1.27075191,115780.0,115770.0,0.05087063]
[1758136381252,1.61075191,115780.0,115770.0,0.00087063]
[1758136383184,1.61075191,115780.0,115770.0,0.01387063]
[1758136383395,1.61175191,115780.0,115770.0,0.01387063]
[1758136384118,1.61175191,115780.0,115770.0,1e-08]
[1758136384347,2.06075191,115780.0,115770.0,1e-08]
[1758136385261,2.12565954,115780.0,115770.0,1e-08]
[1758136386190,2.14944325,115780.0,115770.0,1e-08]
[1758136386423,2.12565954,115780.0,115770.0,1e-08]
[1758136387578,1.81801954,115780.0,115770.0,1e-08]
[1758136387818,2.12509954,115780.0,115770.0,1e-08]
[1758136388960,2.12359954,115780.0,115770.0,1e-08]
[1758136390269,1.67459954,115780.0,115770.0,1e-08]
[1758136391178,1.57954001,115780.0,115770.0,1e-08]
[1758136391401,1.60969191,115780.0,115770.0,1e-08]
[1758136391611,1.57954001,115780.0,115770.0,1e-08]
[1758136392149,1.60969191,115780.0,115770.0,1e-08]
[1758136395095,1.63347562,115780.0,115770.0,1e-08]
[1758136395309,1.6984351,115780.0,115770.0,1e-08]
[1758136395977,1.88628705,115760.0,115750.0,3.0]
[1758136396199,2.71757147,115760.0,115750.0,2.59225894]
[1758136396874,2.71767147,115760.0,115750.0,2.59225894]
[1758136397752,2.73922581,115760.0,115750.0,2.59225894]
[1758136397993,2.71767147,115760.0,115750.0,2.59225894]
[1758136398439,2.04817308,115760.0,115750.0,2.59225894]
[1758136398681,2.07195679,115760.0,115750.0,2.59925894]
[1758136398909,2.07295679,115760.0,115750.0,2.59925894]
[1758136399130,2.74463874,115760.0,115750.0,2.59925894]
[1758136399821,2.74463874,115760.0,115750.0,2.59225894]
[1758136399822,2.74363874,115760.0,115750.0,2.59225894]
[1758136400040,2.07295679,115760.0,115750.0,2.59625894]
[1758136400275,1.40027484,115760.0,115750.0,2.59225894]
[1758136400539,1.37649113,115760.0,115750.0,2.59225894]
[1758136400769,2.10565814,115760.0,115750.0,2.59225894]
[1758136401000,2.77834009,115760.0,115750.0,2.59825894]
[1758136401442,2.10665814,115760.0,115750.0,2.59825894]
[1758136401661,2.04917308,115760.0,115750.0,2.59825894]
[1758136402110,2.74463874,115760.0,115750.0,2.59825894]
[1758136403002,2.74463874,115760.0,115750.0,2.1652467]
[1758136403711,2.74463874,115760.0,115750.0,1.60505769]
[1758136403937,2.76619308,115760.0,115750.0,1.50547078]
[1758136404631,2.81619308,115760.0,115750.0,0.97615191]
[1758136404848,2.79463874,115760.0,115750.0,0.97615191]
[1758136405705,2.77085503,115760.0,115750.0,0.97615191]
[1758136407721,2.72085503,115760.0,115750.0,0.97615191]
[1758136408694,2.74463874,115760.0,115750.0,0.97615191]
[1758136408899,2.75164331,115760.0,115750.0,0.97615191]
[1758136410212,2.7520845,115760.0,115750.0,0.97615191]
[1758136410675,2.7520845,115760.0,115750.0,0.55379388]
[1758136410857,2.7520845,115760.0,115750.0,0.28313287]
[1758136411011,2.7520845,115760.0,115750.0,0.11895673]
[1758136411223,0.51281603,115730.0,115720.0,0.0001]
[1758136411429,1.57604765,115730.0,115720.0,0.06831573]
[1758136411831,1.57604765,115730.0,115720.0,0.0001]
[1758136412271,1.57614765,115730.0,115720.0,0.0001]
[1758136412624,1.57714765,115730.0,115720.0,0.0101]
[1758136413592,1.60729955,115730.0,115720.0,0.0101]
[1758136414985,1.60629955,115730.0,115720.0,0.0001]
[1758136415369,1.60929955,115730.0,115720.0,0.0011]
[1758136415599,1.66999668,115730.0,115720.0,0.0001]
[1758136415806,1.67099668,115730.0,115720.0,0.0021]
[1758136416800,2.11999668,115730.0,115720.0,0.0021]
[1758136417017,2.05609955,115730.0,115720.0,0.0021]
[1758136417227,2.05509955,115730.0,115720.0,0.0001]
[1758136417665,2.05609955,115730.0,115720.0,0.0031]
[1758136417874,2.05509955,115730.0,115720.0,0.0001]
[1758136418359,2.05609955,115730.0,115720.0,0.0061]
[1758136419014,2.05509955,115730.0,115720.0,0.0001]
[1758136419682,1.3834176,115730.0,115720.0,0.0001]
[1758136419889,2.05509955,115730.0,115720.0,0.0001]
[1758136420102,2.12106625,115730.0,115720.0,0.0001]
[1758136420987,2.12206625,115730.0,115720.0,0.0031]
[1758136421229,2.12106625,115730.0,115720.0,0.0001]
[1758136421849,0.54298287,115720.0,115710.0,0.0004]
[1758136422208,1.7126782,115720.0,115710.0,0.0004]
[1758136422648,1.71614169,115720.0,115710.0,1e-08]
[1758136423091,1.71661244,115720.0,115710.0,1e-08]
[1758136423898,1.69282873,115720.0,115710.0,1e-08]
[1758136424105,1.76661244,115720.0,115710.0,1e-08]
[1758136424320,1.46079244,115720.0,115710.0,1e-08]
[1758136424531,1.76663244,115720.0,115710.0,1e-08]
[1758136424944,1.76663244,115720.0,115650.0,0.0004]
[1758136424945,0.0301519,115660.0,115650.0,0.0004]
[1758136425154,0.003311,115630.0,115610.0,0.06821573]
[1758136425376,0.42526967,115620.0,115610.0,0.08551527]
[1758136425588,0.3058,115620.0,115610.0,0.93019263]
[1758136425800,0.3058,115620.0,115610.0,0.91289309]
[1758136426052,0.3058,115620.0,115610.0,0.17299541]
[1758136426256,0.39153984,115620.0,115610.0,0.17299541]
[1758136427098,0.39153984,115620.0,115610.0,0.17255422]
[1758136427534,0.39353984,115620.0,115610.0,0.17855422]
[1758136430252,0.08773984,115620.0,115610.0,0.17855422]
[1758136430508,0.08773984,115620.0,115610.0,0.73088381]
[1758136430509,0.00247017,115620.0,115610.0,0.73088381]
[1758136430727,0.30819017,115620.0,115610.0,0.73088381]
[1758136430967,0.30819017,115620.0,115610.0,0.71900798]
[1758136431416,0.30619017,115620.0,115610.0,0.71300798]
[1758136431642,0.30819017,115620.0,115610.0,0.17855422]
[1758136431856,0.30619017,115620.0,115610.0,0.71300798]
[1758136432289,0.30819017,115620.0,115610.0,0.71900798]
[1758136432497,0.30819017,115620.0,115610.0,0.17855422]
[1758136432939,0.30819017,115620.0,115610.0,0.71900798]
[1758136433160,0.00247017,115620.0,115610.0,0.74786123]
[1758136433368,0.30819017,115620.0,115610.0,0.74786123]
[1758136433837,0.00247017,115620.0,115610.0,0.71900798]
[1758136435838,0.02598358,115670.0,115620.0,0.00864902]
[1758136436062,0.08526967,115660.0,115650.0,0.54045376]
[1758136436291,0.2013254,115660.0,115650.0,0.71338934]
[1758136436526,0.20450431,115660.0,115640.0,0.72202599]
[1758136436762,0.37742741,115660.0,115640.0,0.18157223]
[1758136436980,0.37742524,115660.0,115640.0,0.18157223]
[1758136437196,0.30920951,115660.0,115640.0,0.72202599]
[1758136437429,0.31120951,115660.0,115650.0,0.006]
[1758136437646,0.13628858,115660.0,115650.0,0.17293558]
[1758136437875,0.30920944,115660.0,115640.0,0.72802599]
[1758136438065,0.31120944,115660.0,115640.0,0.72802599]
[1758136438291,0.31120944,115660.0,115640.0,0.17895052]
[1758136438513,0.31120944,115660.0,115640.0,0.17894952]
[1758136438795,0.31120944,115660.0,115640.0,0.006]
[1758136439033,0.20308748,115650.0,115640.0,0.006]
[1758136439269,0.28835715,115650.0,115630.0,0.17296475]
[1758136439521,0.5637002,115640.0,115620.0,0.80867145]
[1758136439762,0.5637002,115640.0,115620.0,0.00014114]
[1758136439990,0.5637002,115640.0,115620.0,0.1731211]
[1758136440479,0.17296549,115630.0,115620.0,0.00014114]
[1758136440722,0.28838706,115630.0,115620.0,0.00014114]
[1758136441184,0.11542157,115630.0,115620.0,0.00014114]
[1758136441418,0.28838706,115630.0,115620.0,0.00014114]
[1758136442134,0.11542157,115630.0,115620.0,0.00014114]
[1758136442378,0.28838706,115630.0,115620.0,0.00014114]
[1758136442895,0.62838706,115630.0,115620.0,0.00214114]
[1758136443310,0.62838706,115630.0,115620.0,0.00014114]
[1758136443513,0.62938706,115630.0,115620.0,0.00014114]
[1758136443724,0.62838706,115630.0,115620.0,0.00014114]
[1758136444308,0.45742157,115630.0,115620.0,0.00014114]
[1758136444542,0.45742157,115630.0,115620.0,0.71357535]
[1758136444771,0.42726967,115630.0,115620.0,0.71357535]
[1758136445003,0.42726967,115630.0,115620.0,0.00014114]
[1758136445264,0.42726967,115630.0,115620.0,0.19041963]
[1758136445488,0.42726967,115630.0,115620.0,0.17312159]
[1758136445928,0.42526967,115630.0,115620.0,0.17312159]
[1758136446381,0.08626967,115630.0,115620.0,0.71957535]
[1758136447049,0.08626967,115630.0,115620.0,0.00614114]
[1758136447284,0.34541947,115630.0,115620.0,0.00614114]
[1758136447520,0.28894943,115630.0,115620.0,0.00614114]
[1758136447744,0.82940319,115630.0,115620.0,0.00614114]
[1758136447967,1.16940319,115630.0,115620.0,0.00614114]
[1758136448216,0.62894943,115630.0,115620.0,0.00614114]
[1758136449108,1.16940319,115630.0,115620.0,0.00614114]
[1758136449579,0.45598394,115630.0,115620.0,0.17912159]
[1758136449797,0.62894943,115630.0,115620.0,0.00614114]
[1758136450873,0.45598394,115630.0,115620.0,0.00614114]
[1758136451104,0.45598394,115630.0,115620.0,0.17912159]
[1758136451794,0.45598394,115630.0,115620.0,0.80484502]
[1758136452025,0.39099204,115630.0,115620.0,0.71957535]
[1758136452674,0.39099204,115630.0,115620.0,0.17912159]
[1758136452892,0.39099204,115630.0,115620.0,0.71957535]
[1758136453560,0.39109204,115630.0,115620.0,0.71957535]
[1758136453773,0.0011,115630.0,115620.0,0.80484502]
[1758136453994,0.0011,115630.0,115620.0,1.10992502]
[1758136456147,0.0011,115630.0,115620.0,1.10988502]
[1758136457263,0.0011,115630.0,115620.0,0.80484502]
[1758136457478,0.0011,115630.0,115620.0,1.02453535]
[1758136458583,0.0011,115630.0,115620.0,0.71957535]
[1758136459251,0.08636967,115630.0,115620.0,0.00614114]
[1758136459467,0.08636967,115630.0,115620.0,0.17912159]
[1758136459708,0.25933516,115630.0,115620.0,0.00614114]
[1758136459957,1.16994082,115630.0,115620.0,0.00614114]
[1758136460406,0.62948706,115630.0,115620.0,0.00614114]
[1758136462897,1.16994082,115630.0,115620.0,0.00614114]
[1758136463730,1.16994082,115630.0,115620.0,0.19641963]
[1758136463731,0.73112967,115630.0,115620.0,0.19641963]
[1758136463975,0.73112967,115630.0,115620.0,0.17912159]
[1758136465443,0.90409516,115630.0,115620.0,0.00614114]
[1758136465646,0.73112967,115630.0,115620.0,0.17912159]
[1758136466600,0.73112967,115630.0,115620.0,0.00614114]
[1758136466601,1.47470082,115630.0,115620.0,0.00614114]
[1758136467417,0.93424706,115630.0,115620.0,0.00614114]
[1758136467632,1.47470082,115630.0,115620.0,0.00614114]
[1758136467988,0.93424706,115630.0,115620.0,0.00614114]
[1758136468948,1.30173533,115630.0,115620.0,0.00614114]
[1758136469157,0.93424706,115630.0,115620.0,0.00614114]
[1758136469389,1.47470082,115630.0,115620.0,0.00614114]
[1758136473292,0.93424706,115630.0,115620.0,0.00614114]
[1758136473514,1.47470082,115630.0,115620.0,0.00614114]
[1758136473742,1.50069605,115630.0,115620.0,0.00614114]
[1758136474632,1.50069605,115630.0,115600.0,1.0]
[1758136474864,1.7093245,115610.0,115600.0,1.00047017]
[1758136475106,1.47323074,115610.0,115600.0,1.00047017]
[1758136475881,0.93287698,115610.0,115600.0,1.00047017]
[1758136476076,1.47333074,115610.0,115600.0,1.00047017]
[1758136476282,1.47433074,115610.0,115600.0,1.00047017]
[1758136476509,1.47855723,115610.0,115600.0,1.00047017]
[1758136476739,0.93810347,115610.0,115600.0,1.00047017]
[1758136476949,1.47855723,115610.0,115600.0,1.00047017]
[1758136477833,0.43059616,115610.0,115600.0,1.17348055]
[1758136478048,0.73491616,115610.0,115600.0,1.17348055]
[1758136478269,0.90791157,115610.0,115600.0,1.00047017]
[1758136478487,0.73491616,115610.0,115600.0,1.17348055]
[1758136479120,0.73068967,115610.0,115600.0,1.17348055]
[1758136479363,0.76084157,115610.0,115600.0,1.17348055]
[1758136479631,0.93383698,115610.0,115600.0,1.17348055]
[1758136479845,0.76084157,115610.0,115600.0,1.17348055]
[1758136480063,0.73068967,115610.0,115600.0,1.17348055]
[1758136480278,0.7349731,115610.0,115600.0,1.17348055]
[1758136482556,0.73068967,115610.0,115600.0,1.17348055]
[1758136482767,0.08636967,115610.0,115600.0,1.25875022]
[1758136482980,0.39052967,115610.0,115600.0,1.79920398]
[1758136483457,0.0011,115610.0,115600.0,1.79920398]
[1758136484837,0.0011,115610.0,115600.0,2.33965774]
[1758136485054,0.0001,115610.0,115600.0,1.79920398]
[1758136485486,0.0041,115610.0,115600.0,1.80020398]
[1758136485707,0.0001,115610.0,115600.0,1.79920398]
[1758136485936,0.0001,115610.0,115600.0,1.80020398]
[1758136486155,0.0011,115610.0,115600.0,1.80020398]
[1758136486397,0.0011,115610.0,115600.0,1.17448055]
[1758136486612,0.0011,115610.0,115600.0,1.71493431]
[1758136487544,0.0011,115610.0,115600.0,1.17448055]
[1758136488368,0.0011,115610.0,115600.0,1.71493431]
[1758136488590,0.0011,115610.0,115600.0,1.17448055]
[1758136488806,0.0011,115610.0,115600.0,1.25975022]
[1758136489034,0.0011,115610.0,115600.0,1.80020398]
[1758136489276,0.0011,115610.0,115600.0,2.64457774]
[1758136489488,0.0011,115610.0,115600.0,2.10412398]
[1758136489962,0.0011,115610.0,115600.0,2.23654839]
[1758136491009,0.00051206,115610.0,115600.0,2.23654839]
[1758136491235,0.00051206,115610.0,115600.0,1.25975022]
[1758136491362,0.00051206,115610.0,115600.0,1.56363022]
[1758136492039,0.00061206,115610.0,115600.0,2.23650839]
[1758136492461,0.08588173,115610.0,115600.0,1.25975022]
[1758136492667,0.08588173,115610.0,115600.0,1.56359022]
[1758136493107,0.08588173,115610.0,115600.0,1.25975022]
[1758136494252,0.08588173,115610.0,115600.0,1.93262839]
[1758136495060,0.08588173,115610.0,115600.0,1.25975022]
[1758136495861,0.08588173,115610.0,115600.0,1.17448055]
[1758136496724,0.00061206,115610.0,115600.0,2.15103872]
[1758136497284,0.00061206,115610.0,115600.0,1.47816055]
[1758136497488,0.00061206,115610.0,115600.0,2.15103872]
[1758136500185,0.00061206,115610.0,115600.0,2.28630839]
[1758136500186,1e-08,115610.0,115600.0,2.28630839]
[1758136500405,1e-08,115620.0,115610.0,0.22299541]
[1758136500637,1e-08,115630.0,115620.0,0.56298045]
[1758136500869,1e-08,115640.0,115630.0,0.17296549]
[1758136501091,1e-08,115640.0,115630.0,0.47648549]
[1758136501309,1e-08,115640.0,115630.0,1.23463333]
[1758136501568,0.00010001,115640.0,115630.0,1.23463333]
[1758136502446,0.00010001,115640.0,115630.0,0.56175516]
[1758136502708,0.00010001,115640.0,115630.0,1.23563333]
[1758136503153,1e-08,115640.0,115630.0,1.37512168]
[1758136504054,1e-08,115650.0,115640.0,0.51295053]
[1758136504270,1e-08,115650.0,115640.0,1.40636804]
[1758136504905,1e-08,115650.0,115640.0,1.47170468]
[1758136505143,8.134e-05,115650.0,115640.0,1.47170468]
[1758136505376,0.00108134,115650.0,115640.0,1.47170468]
[1758136506242,0.0001,115660.0,115650.0,0.17293558]
[1758136506243,1e-08,115660.0,115650.0,0.17293558]
[1758136506475,1e-08,115660.0,115650.0,1.65236918]
[1758136507163,1e-08,115670.0,115660.0,0.22292062]
[1758136507372,1e-08,115670.0,115660.0,0.98106846]
[1758136507630,0.0001,115700.0,115680.0,0.17289073]
[1758136507887,0.06831573,115720.0,115710.0,0.1728459]
[1758136508121,0.0001,115730.0,115720.0,0.17283097]
[1758136508775,0.0001,115730.0,115720.0,0.84570914]
[1758136509046,0.00018149,115730.0,115720.0,0.84570914]
[1758136510219,0.00018149,115730.0,115720.0,1.15405367]
[1758136510456,0.00018149,115730.0,115720.0,1.21883283]
[1758136510686,0.00018149,115730.0,115720.0,0.63122433]
[1758136510916,0.00018149,115730.0,115720.0,0.6311879]
[1758136511144,0.00018149,115730.0,115720.0,1.30406607]
[1758136511367,0.00118149,115730.0,115720.0,1.30406607]
[1758136511635,0.00018149,115730.0,115720.0,0.3280679]
[1758136511866,0.00018149,115730.0,115720.0,1.30402607]
[1758136512099,0.00218149,115730.0,115720.0,0.6321479]
[1758136512329,0.00018149,115730.0,115720.0,1.30402607]
[1758136512771,0.00118149,115730.0,115720.0,1.00094607]
[1758136513015,0.00018149,115730.0,115720.0,1.30398607]
[1758136513243,0.00018149,115730.0,115720.0,1.30498607]
[1758136513462,0.00218149,115730.0,115720.0,1.00194607]
[1758136513678,0.00218149,115730.0,115720.0,1.30490607]
[1758136514148,0.00218149,115730.0,115720.0,0.45919693]
[1758136514392,0.08745116,115730.0,115720.0,0.17383097]
[1758136514621,0.08545116,115730.0,115720.0,0.17283097]
[1758136514843,0.08645116,115730.0,115720.0,0.17283097]
[1758136515305,0.93214536,115730.0,115700.0,0.18150388]
[1758136515545,1.09814784,115720.0,115710.0,0.1728459]
[1758136515773,0.59810065,115720.0,115710.0,0.1728459]
[1758136515982,0.42526967,115720.0,115700.0,0.18150388]
[1758136516276,0.42526967,115720.0,115710.0,0.1728459]
[1758136516481,0.42536967,115720.0,115710.0,0.1728459]
[1758136516700,0.42536967,115720.0,115710.0,0.20828088]
[1758136516949,0.42536967,115720.0,115710.0,0.1728459]
[1758136518021,0.42736967,115720.0,115710.0,0.1728459]
[1758136518227,1.27307881,115720.0,115710.0,0.1728459]
[1758136518437,1.09824784,115720.0,115710.0,0.1728459]
[1758136518641,1.10024784,115720.0,115710.0,0.1738459]
[1758136518811,0.42736967,115720.0,115710.0,0.1738459]
[1758136519016,0.60020064,115720.0,115710.0,0.1738459]
[1758136519220,1.57587881,115720.0,115710.0,0.001]
[1758136519419,1.27307881,115720.0,115710.0,0.1738459]
[1758136519625,0.90296064,115720.0,115710.0,0.1738459]
[1758136519805,1.40300784,115720.0,115710.0,0.1738459]
[1758136520280,1.57583881,115720.0,115710.0,0.001]
[1758136520496,1.57583881,115720.0,115710.0,0.1738459]
[1758136520697,0.90296064,115720.0,115710.0,0.1738459]
[1758136520872,1.57583881,115720.0,115710.0,0.1738459]
[1758136521035,1.57583881,115720.0,115710.0,0.001]
[1758136521912,1.57583881,115720.0,115710.0,0.1738459]
[1758136522289,1.57583881,115720.0,115710.0,0.001]
[1758136522781,1.60599071,115720.0,115710.0,0.001]
[1758136524307,0.45752157,115720.0,115710.0,0.1738459]
[1758136524533,0.42736967,115720.0,115710.0,0.1738459]
[1758136524739,0.73000967,115720.0,115710.0,0.1738459]
[1758136525010,0.42536967,115720.0,115710.0,0.1728459]
[1758136525157,0.72796967,115720.0,115710.0,0.1728459]
[1758136525361,0.73496967,115720.0,115710.0,0.1738459]
[1758136525618,0.72796967,115720.0,115710.0,0.1728459]
[1758136525994,0.72996967,115720.0,115710.0,0.1738459]
[1758136526328,0.72996967,115720.0,115710.0,0.1728459]
[1758136526559,0.17284649,115710.0,115690.0,0.18151925]
[1758136526796,0.17284649,115710.0,115690.0,0.17287534]
[1758136526797,1.06074784,115700.0,115690.0,0.17287534]
[1758136527256,0.38786967,115700.0,115690.0,0.17287534]
[1758136527482,0.38796967,115700.0,115690.0,0.17287534]
[1758136527707,1.06084784,115700.0,115690.0,0.17287534]
[1758136527922,0.38796967,115700.0,115690.0,0.17287534]
[1758136528372,0.38796967,115700.0,115690.0,0.17387534]
[1758136528583,0.38796967,115700.0,115690.0,0.17287534]
[1758136528800,0.08536967,115700.0,115690.0,0.17287534]
[1758136529016,0.08636967,115700.0,115690.0,0.2103164]
[1758136529228,0.38888967,115700.0,115690.0,0.2103164]
[1758136529435,0.08636967,115700.0,115690.0,0.2103164]
[1758136529674,0.08536967,115700.0,115690.0,0.2083164]
[1758136529891,0.08536967,115700.0,115690.0,0.17287534]
[1758136530111,0.08636967,115700.0,115690.0,0.17387534]
[1758136531170,0.08536967,115700.0,115690.0,0.17287534]
[1758136531622,0.38884967,115700.0,115690.0,0.17487534]
[1758136531849,0.38884967,115700.0,115690.0,0.17287534]
[1758136532145,0.38984967,115700.0,115690.0,0.17387534]
[1758136532338,0.38784967,115700.0,115690.0,0.17287534]
[1758136533041,0.38884967,115700.0,115690.0,0.17487534]
[1758136534282,0.08636967,115700.0,115690.0,0.17487534]
[1758136534529,0.08536967,115700.0,115690.0,0.19988025]
[1758136534956,0.0001,115700.0,115690.0,1.17511842]
[1758136535174,0.0001,115710.0,115700.0,0.17286084]
[1758136535394,0.0001,115710.0,115700.0,0.84573901]
[1758136536240,0.0001,115710.0,115700.0,0.47518084]
[1758136536449,0.0001,115710.0,115700.0,1.21556512]
[1758136536663,0.0001,115710.0,115700.0,1.28101707]
[1758136537072,0.0011,115710.0,115700.0,1.28301707]
[1758136538352,0.0011,115710.0,115700.0,0.24236695]
[1758136539662,0.08636967,115710.0,115700.0,0.17486084]
[1758136540537,0.08536967,115710.0,115700.0,0.17286084]
[1758136540825,0.08636967,115710.0,115700.0,0.17486084]
[1758136544563,0.08636967,115710.0,115700.0,0.17496084]
[1758136544782,0.08626967,115710.0,115700.0,0.17496084]
[1758136545001,0.08626967,115710.0,115700.0,0.20975446]
[1758136545435,0.08626967,115710.0,115700.0,0.88263263]
[1758136545648,0.08626967,115710.0,115700.0,0.20975446]
[1758136546150,0.001,115710.0,115700.0,0.88263263]
[1758136546354,0.001,115710.0,115700.0,1.18467263]
[1758136546976,0.001,115710.0,115700.0,0.20975446]
[1758136547404,0.001,115710.0,115700.0,0.17496084]
[1758136548813,0.001,115710.0,115700.0,0.84783901]
[1758136549040,0.001,115710.0,115700.0,0.17496084]
[1758136549242,0.001,115710.0,115700.0,0.84783901]
[1758136549449,8.149e-05,115730.0,115720.0,0.17283097]
[1758136549698,8.149e-05,115730.0,115720.0,1.18229549]
[1758136549903,8.149e-05,115730.0,115720.0,1.04856362]
[1758136550321,8.149e-05,115730.0,115720.0,1.05356339]
[1758136550734,8.149e-05,115730.0,115720.0,1.39356339]
[1758136550949,8.149e-05,115730.0,115720.0,1.52883306]
[1758136551180,0.0003,115750.0,115740.0,0.1728011]
[1758136551388,0.00077074,115750.0,115740.0,1.04834779]
[1758136551808,0.00077074,115750.0,115740.0,1.0138874]
[1758136553477,0.00277074,115750.0,115740.0,1.0138874]
[1758136553708,0.00277074,115750.0,115740.0,0.7120474]
[1758136553919,0.00377074,115750.0,115740.0,1.0178074]
[1758136554333,0.00377074,115750.0,115740.0,1.0138074]
[1758136554334,0.00077074,115750.0,115740.0,1.0138074]
[1758136556435,0.00177074,115750.0,115740.0,0.4754411]
[1758136556673,0.00177074,115750.0,115740.0,0.1738011]
[1758136557106,0.00177074,115750.0,115740.0,0.4754411]
[1758136557320,0.00177074,115750.0,115740.0,1.09985707]
[1758136557569,0.00177074,115750.0,115740.0,0.56071077]
[1758136557785,0.00177074,115750.0,115740.0,1.09985707]
[1758136559269,0.00177074,115750.0,115740.0,1.0145074]
[1758136559487,0.00177074,115750.0,115740.0,1.0144674]
[1758136560693,0.00177074,115750.0,115740.0,0.7129474]
[1758136560922,0.00177074,115750.0,115740.0,1.0144274]
[1758136562049,0.0001,115760.0,115750.0,1.25107877]
[1758136562284,0.0001,115760.0,115750.0,1.42175928]
[1758136562740,1e-08,115760.0,115750.0,1.76175928]
[1758136563645,0.0001,115770.0,115760.0,0.71191755]